[Event "*** SCC Grand Prix: Titled Tuesday Blitz"]
[Site "Chess.com"]
[Date "2020.08.11"]
[Round "2"]
[White "belisarius64"]
[Black "mbachez"]
[Result "1-0"]
[WhiteElo "2720"]
[BlackElo "2476"]
[TimeControl "180+1"]
[EndTime "10:18:47 PDT"]
[Termination "belisarius64 won by resignation"]

1. e4 {[%clk 0:03:00.9]} 1... c6 {[%clk 0:03:00.1]} 2. Nf3 {[%clk 0:02:59.9]}
2... d5 {[%clk 0:03:01]} 3. d3 {[%clk 0:03:00.5]} 3... g6 {[%clk 0:02:55.5]} 4.
Nbd2 {[%clk 0:03:00.3]} 4... Bg7 {[%clk 0:02:55.4]} 5. Be2 {[%clk 0:03:00.9]}
5... e5 {[%clk 0:02:55.7]} 6. O-O {[%clk 0:03:01.2]} 6... Ne7 {[%clk 0:02:56.3]}
7. Re1 {[%clk 0:02:58.7]} 7... O-O {[%clk 0:02:55.5]} 8. Bf1 {[%clk 0:02:59.3]}
8... Re8 {[%clk 0:02:49]} 9. exd5 {[%clk 0:02:54.6]} 9... Nxd5 {[%clk
0:02:49.1]} 10. Nc4 {[%clk 0:02:55.2]} 10... f6 {[%clk 0:02:34.4]} 11. c3 {[%clk
0:02:47.6]} 11... Bf5 {[%clk 0:02:32.3]} 12. a4 {[%clk 0:02:24.5]} 12... Na6
{[%clk 0:02:31.5]} 13. g3 {[%clk 0:02:19.3]} 13... Nc5 {[%clk 0:02:26.3]} 14. d4
{[%clk 0:02:16.9]} 14... exd4 {[%clk 0:01:55.5]} 15. Rxe8+ {[%clk 0:02:17.8]}
15... Qxe8 {[%clk 0:01:55.5]} 16. Nd6 {[%clk 0:02:16.4]} 16... Qd7 {[%clk
0:01:50.1]} 17. Nxf5 {[%clk 0:02:16.6]} 17... Qxf5 {[%clk 0:01:46.7]} 18. Nxd4
{[%clk 0:02:17.2]} 18... Qd7 {[%clk 0:01:40.2]} 19. Bg2 {[%clk 0:02:17.5]} 19...
Re8 {[%clk 0:01:39.2]} 20. a5 {[%clk 0:02:09.6]} 20... f5 {[%clk 0:01:32.3]} 21.
a6 {[%clk 0:01:51.9]} 21... Bxd4 {[%clk 0:01:26.4]} 22. Qxd4 {[%clk 0:01:37.3]}
22... Nb3 {[%clk 0:01:23.5]} 23. Qxa7 {[%clk 0:01:25.2]} 23... Nxa1 {[%clk
0:01:04.9]} 24. axb7 {[%clk 0:01:24.9]} 24... Qc7 {[%clk 0:00:48.6]} 25. Bxd5+
{[%clk 0:01:22.1]} 25... cxd5 {[%clk 0:00:48.4]} 26. Bf4 {[%clk 0:01:23]} 26...
Qe7 {[%clk 0:00:18.7]} 27. b8=Q {[%clk 0:01:21.2]} 27... Qe1+ {[%clk 0:00:18.7]}
28. Kg2 {[%clk 0:01:21]} 28... Qe4+ {[%clk 0:00:18.9]} 29. Kh3 {[%clk
0:01:21.4]} 29... Rxb8 {[%clk 0:00:18.8]} 30. Qxb8+ {[%clk 0:01:21]} 30... Kf7
{[%clk 0:00:18.8]} 31. Qa7+ {[%clk 0:01:21.2]} 31... Kf6 {[%clk 0:00:19]} 32.
Qxa1 {[%clk 0:01:19.1]} 32... g5 {[%clk 0:00:19]} 33. Qa6+ {[%clk 0:01:18.8]}
33... Kf7 {[%clk 0:00:19.3]} 34. Qb7+ {[%clk 0:01:16.4]} 34... Kg6 {[%clk
0:00:19.3]} 35. Qb4 {[%clk 0:00:25.7]} 35... g4+ {[%clk 0:00:17.3]} 36. Kh4
{[%clk 0:00:26]} 36... Qe6 {[%clk 0:00:16.1]} 37. Qd6 {[%clk 0:00:25.7]} 37...
Qxd6 {[%clk 0:00:14.9]} 38. Bxd6 {[%clk 0:00:26.6]} 38... d4 {[%clk 0:00:15.1]}
39. cxd4 {[%clk 0:00:26.5]} 1-0

[Event "*** SCC Grand Prix: Titled Tuesday Blitz"]
[Site "Chess.com"]
[Date "2020.08.11"]
[Round "2"]
[White "Fins0905"]
[Black "Khazieva_Elza"]
[Result "0-1"]
[WhiteElo "2634"]
[BlackElo "2329"]
[TimeControl "180+1"]
[EndTime "10:18:48 PDT"]
[Termination "Khazieva_Elza won on time"]

1. e4 {[%clk 0:03:00.9]} 1... c5 {[%clk 0:02:57.9]} 2. Nf3 {[%clk 0:02:58.5]}
2... d6 {[%clk 0:02:58.1]} 3. d4 {[%clk 0:02:58.5]} 3... cxd4 {[%clk 0:02:59]}
4. Nxd4 {[%clk 0:02:59.1]} 4... Nf6 {[%clk 0:02:59.7]} 5. Nc3 {[%clk 0:02:59.5]}
5... Nc6 {[%clk 0:03:00.3]} 6. Bg5 {[%clk 0:02:58.7]} 6... e6 {[%clk 0:03:00.3]}
7. Qd2 {[%clk 0:02:58.4]} 7... Be7 {[%clk 0:03:00.6]} 8. O-O-O {[%clk 0:02:58]}
8... O-O {[%clk 0:03:00.6]} 9. f4 {[%clk 0:02:57.5]} 9... h6 {[%clk 0:03:00.9]}
10. Bxf6 {[%clk 0:02:42.6]} 10... Bxf6 {[%clk 0:03:01.8]} 11. Nb3 {[%clk
0:02:17.5]} 11... e5 {[%clk 0:02:56.4]} 12. g3 {[%clk 0:01:55.9]} 12... Bg4
{[%clk 0:02:54.1]} 13. Be2 {[%clk 0:01:52.2]} 13... Bxe2 {[%clk 0:02:53.6]} 14.
Nxe2 {[%clk 0:01:52.6]} 14... Be7 {[%clk 0:02:02.4]} 15. Nc3 {[%clk 0:01:43.7]}
15... a5 {[%clk 0:02:00.8]} 16. a4 {[%clk 0:01:41.3]} 16... Nb4 {[%clk
0:01:35.2]} 17. Nd5 {[%clk 0:01:30.7]} 17... Nxd5 {[%clk 0:01:24.6]} 18. Qxd5
{[%clk 0:01:29.9]} 18... Qc7 {[%clk 0:01:23.3]} 19. Kb1 {[%clk 0:00:42]} 19...
Rac8 {[%clk 0:01:21]} 20. c3 {[%clk 0:00:32.8]} 20... b6 {[%clk 0:01:19.5]} 21.
Rhe1 {[%clk 0:00:27.6]} 21... Rfd8 {[%clk 0:00:59.7]} 22. Kc2 {[%clk 0:00:24.7]}
22... Qd7 {[%clk 0:00:52.2]} 23. Qb5 {[%clk 0:00:22.6]} 23... Qg4 {[%clk
0:00:42.3]} 24. Qe2 {[%clk 0:00:15.2]} 24... Qd7 {[%clk 0:00:38.7]} 25. Qb5
{[%clk 0:00:12.6]} 25... Qg4 {[%clk 0:00:38.1]} 26. Rf1 {[%clk 0:00:09.1]} 26...
exf4 {[%clk 0:00:24.4]} 27. Rxf4 {[%clk 0:00:07.6]} 27... Qh3 {[%clk 0:00:20.7]}
28. Qe2 {[%clk 0:00:04.5]} 28... Bf6 {[%clk 0:00:15.7]} 29. Rdf1 {[%clk
0:00:03.4]} 29... Re8 {[%clk 0:00:10.6]} 30. R1f2 {[%clk 0:00:02.5]} 30... d5
{[%clk 0:00:09.9]} 31. Nd2 {[%clk 0:00:01.8]} 31... Qd7 {[%clk 0:00:07.3]} 0-1

[Event "*** SCC Grand Prix: Titled Tuesday Blitz"]
[Site "Chess.com"]
[Date "2020.08.11"]
[Round "2"]
[White "MasterKroket"]
[Black "bugbug01052018"]
[Result "1-0"]
[WhiteElo "2407"]
[BlackElo "2175"]
[TimeControl "180+1"]
[EndTime "10:18:48 PDT"]
[Termination "MasterKroket won by resignation"]

1. d4 {[%clk 0:03:00.9]} 1... Nf6 {[%clk 0:02:58.8]} 2. c4 {[%clk 0:03:00.5]}
2... e6 {[%clk 0:02:53.7]} 3. Nf3 {[%clk 0:03:00.4]} 3... b6 {[%clk 0:02:48.6]}
4. Nc3 {[%clk 0:02:58.6]} 4... Bb7 {[%clk 0:02:48]} 5. Bg5 {[%clk 0:02:58.8]}
5... Be7 {[%clk 0:02:41.2]} 6. e3 {[%clk 0:02:56.1]} 6... O-O {[%clk 0:02:35.1]}
7. Bd3 {[%clk 0:02:56]} 7... c5 {[%clk 0:02:23.2]} 8. O-O {[%clk 0:02:23.6]}
8... d6 {[%clk 0:02:17]} 9. d5 {[%clk 0:02:19.5]} 9... Nbd7 {[%clk 0:02:14.2]}
10. dxe6 {[%clk 0:02:15.7]} 10... fxe6 {[%clk 0:02:06]} 11. Bc2 {[%clk
0:02:15.8]} 11... h6 {[%clk 0:01:53.9]} 12. Bf4 {[%clk 0:02:10.5]} 12... e5
{[%clk 0:01:44.8]} 13. Bg3 {[%clk 0:02:09.1]} 13... a6 {[%clk 0:01:42.1]} 14.
Nh4 {[%clk 0:02:07.4]} 14... Rf7 {[%clk 0:01:39.6]} 15. Nf5 {[%clk 0:02:04.3]}
15... Nf8 {[%clk 0:01:39.5]} 16. Qd2 {[%clk 0:01:53.8]} 16... Qd7 {[%clk
0:01:26.5]} 17. Rad1 {[%clk 0:01:51.8]} 17... Rd8 {[%clk 0:01:17.9]} 18. f4
{[%clk 0:01:47.7]} 18... e4 {[%clk 0:01:15.9]} 19. Nxe7+ {[%clk 0:01:43.3]}
19... Qxe7 {[%clk 0:01:15.3]} 20. f5 {[%clk 0:01:35.6]} 20... d5 {[%clk
0:01:11.8]} 21. cxd5 {[%clk 0:01:34.8]} 21... Nxd5 {[%clk 0:01:12]} 22. Nxe4
{[%clk 0:01:22.1]} 22... Re8 {[%clk 0:00:48]} 23. Nd6 {[%clk 0:01:10.8]} 23...
Qxe3+ {[%clk 0:00:39.6]} 24. Qxe3 {[%clk 0:01:10.6]} 24... Nxe3 {[%clk
0:00:39.8]} 25. Rfe1 {[%clk 0:01:10]} 25... Rfe7 {[%clk 0:00:15.1]} 26. Nxe8
{[%clk 0:00:57.5]} 26... Rxe8 {[%clk 0:00:15]} 27. Bf2 {[%clk 0:00:52.6]} 27...
Nxd1 {[%clk 0:00:13.4]} 28. Rxe8 {[%clk 0:00:52.8]} 28... Nxf2 {[%clk
0:00:14.1]} 29. Kxf2 {[%clk 0:00:53.3]} 29... Kf7 {[%clk 0:00:14.7]} 30. Rb8
{[%clk 0:00:53.1]} 30... Bd5 {[%clk 0:00:14.4]} 31. Rxb6 {[%clk 0:00:52.9]}
31... Nd7 {[%clk 0:00:13.3]} 32. Rd6 {[%clk 0:00:51]} 32... Nf6 {[%clk
0:00:13.3]} 33. Rxa6 {[%clk 0:00:44.8]} 33... Ng4+ {[%clk 0:00:11.7]} 34. Kg3
{[%clk 0:00:43.9]} 34... Ne3 {[%clk 0:00:11.4]} 35. Bd3 {[%clk 0:00:42.2]} 35...
c4 {[%clk 0:00:09.7]} 36. Bb1 {[%clk 0:00:40.5]} 36... Nd1 {[%clk 0:00:09.4]}
37. Rd6 {[%clk 0:00:37.6]} 37... Ne3 {[%clk 0:00:09.1]} 38. Kf2 {[%clk
0:00:34.5]} 38... Ng4+ {[%clk 0:00:07.5]} 39. Kg1 {[%clk 0:00:31.6]} 39... Ne3
{[%clk 0:00:03]} 40. a4 {[%clk 0:00:30.9]} 40... Bb7 {[%clk 0:00:02]} 41. a5
{[%clk 0:00:30.5]} 1-0

[Event "*** SCC Grand Prix: Titled Tuesday Blitz"]
[Site "Chess.com"]
[Date "2020.08.11"]
[Round "2"]
[White "GMKrikor"]
[Black "Thipsay"]
[Result "1-0"]
[WhiteElo "2730"]
[BlackElo "2490"]
[TimeControl "180+1"]
[EndTime "10:18:49 PDT"]
[Termination "GMKrikor won by resignation"]

1. e4 {[%clk 0:03:00.9]} 1... e5 {[%clk 0:02:59.7]} 2. Bc4 {[%clk 0:03:00.3]}
2... Nf6 {[%clk 0:02:57.2]} 3. d3 {[%clk 0:03:00.1]} 3... Nc6 {[%clk 0:02:56]}
4. Nc3 {[%clk 0:02:57.5]} 4... Bb4 {[%clk 0:02:55.5]} 5. Ne2 {[%clk 0:02:56.9]}
5... d5 {[%clk 0:02:54.1]} 6. exd5 {[%clk 0:02:57.8]} 6... Nxd5 {[%clk
0:02:53.5]} 7. O-O {[%clk 0:02:57.1]} 7... Nxc3 {[%clk 0:02:47.2]} 8. bxc3
{[%clk 0:02:51.3]} 8... Bd6 {[%clk 0:02:46.8]} 9. Ng3 {[%clk 0:02:51.4]} 9...
O-O {[%clk 0:02:45.7]} 10. Qh5 {[%clk 0:02:39.8]} 10... Na5 {[%clk 0:02:36]} 11.
Bb3 {[%clk 0:02:31.5]} 11... Nxb3 {[%clk 0:02:35.7]} 12. axb3 {[%clk 0:02:32.4]}
12... f5 {[%clk 0:02:28]} 13. c4 {[%clk 0:02:26.2]} 13... b6 {[%clk 0:02:16.3]}
14. Bb2 {[%clk 0:02:20.1]} 14... Qe8 {[%clk 0:02:05]} 15. Qf3 {[%clk 0:02:09.7]}
15... Bd7 {[%clk 0:02:00.9]} 16. Rfe1 {[%clk 0:02:02.4]} 16... Bc6 {[%clk
0:02:00.5]} 17. Qe2 {[%clk 0:01:42.7]} 17... f4 {[%clk 0:02:00.2]} 18. Ne4
{[%clk 0:01:42]} 18... f3 {[%clk 0:01:59.5]} 19. gxf3 {[%clk 0:01:42.8]} 19...
Qh5 {[%clk 0:01:57.9]} 20. Kh1 {[%clk 0:01:13]} 20... Rxf3 {[%clk 0:01:48.9]}
21. Rg1 {[%clk 0:01:11.1]} 21... Bxe4 {[%clk 0:01:39.9]} 22. Qxe4 {[%clk
0:00:48.4]} 22... Raf8 {[%clk 0:01:37.9]} 23. Rg2 {[%clk 0:00:49]} 23... Rxf2
{[%clk 0:01:34.8]} 24. Rag1 {[%clk 0:00:49.5]} 24... Rxg2 {[%clk 0:01:34]} 25.
Qxg2 {[%clk 0:00:46.6]} 25... g6 {[%clk 0:01:32.4]} 26. d4 {[%clk 0:00:47]}
26... e4 {[%clk 0:01:26.9]} 27. c5 {[%clk 0:00:35.6]} 27... bxc5 {[%clk
0:01:24.4]} 28. dxc5 {[%clk 0:00:36.5]} 28... Bxc5 {[%clk 0:01:23.5]} 29. Qxe4
{[%clk 0:00:27]} 29... Qf3+ {[%clk 0:01:10.8]} 30. Qxf3 {[%clk 0:00:26.7]} 30...
Rxf3 {[%clk 0:01:10.7]} 31. Rd1 {[%clk 0:00:17.4]} 31... Rf2 {[%clk 0:01:10.4]}
32. Rd8+ {[%clk 0:00:08.8]} 32... Kf7 {[%clk 0:00:59]} 33. Rd7+ {[%clk
0:00:08.7]} 33... Ke6 {[%clk 0:00:58.9]} 34. Rxc7 {[%clk 0:00:08.3]} 34... Rxc2
{[%clk 0:00:57.9]} 35. Bd4 {[%clk 0:00:06.7]} 35... Rc1+ {[%clk 0:00:57.6]} 36.
Kg2 {[%clk 0:00:06.5]} 36... Ba3 {[%clk 0:00:57.1]} 37. Rxc1 {[%clk 0:00:05.8]}
37... Bxc1 {[%clk 0:00:56.3]} 38. Bxa7 {[%clk 0:00:06.7]} 38... Kd5 {[%clk
0:00:56.3]} 39. Kf3 {[%clk 0:00:06]} 39... h5 {[%clk 0:00:55.6]} 40. Be3 {[%clk
0:00:06.1]} 40... Bxe3 {[%clk 0:00:54.2]} 41. Kxe3 {[%clk 0:00:06.4]} 41... g5
{[%clk 0:00:54.6]} 42. Kf3 {[%clk 0:00:06]} 42... Kc5 {[%clk 0:00:53]} 43. Ke4
{[%clk 0:00:05.6]} 43... g4 {[%clk 0:00:50.8]} 44. Kf4 {[%clk 0:00:05.5]} 44...
Kb4 {[%clk 0:00:51.3]} 45. Kg5 {[%clk 0:00:05.8]} 45... Kxb3 {[%clk 0:00:51.9]}
46. Kxh5 {[%clk 0:00:06.1]} 46... Kc4 {[%clk 0:00:52.6]} 47. Kxg4 {[%clk
0:00:06.3]} 47... Kd5 {[%clk 0:00:53.5]} 48. Kf5 {[%clk 0:00:06.5]} 48... Kd6
{[%clk 0:00:53.5]} 49. Kf6 {[%clk 0:00:06.9]} 49... Kd7 {[%clk 0:00:52.5]} 50.
h4 {[%clk 0:00:06.6]} 50... Ke8 {[%clk 0:00:50.7]} 51. Kg7 {[%clk 0:00:06.7]}
1-0

[Event "*** SCC Grand Prix: Titled Tuesday Blitz"]
[Site "Chess.com"]
[Date "2020.08.11"]
[Round "2"]
[White "ftorodent"]
[Black "ItsCheckM8Mate"]
[Result "1-0"]
[WhiteElo "2654"]
[BlackElo "2318"]
[TimeControl "180+1"]
[EndTime "10:18:51 PDT"]
[Termination "ftorodent won by resignation"]

1. d4 {[%clk 0:03:00.9]} 1... Nf6 {[%clk 0:02:58.8]} 2. c4 {[%clk 0:03:00.3]}
2... c5 {[%clk 0:02:58.3]} 3. d5 {[%clk 0:03:00]} 3... b5 {[%clk 0:02:58.6]} 4.
cxb5 {[%clk 0:03:00.1]} 4... a6 {[%clk 0:02:58.9]} 5. bxa6 {[%clk 0:03:00.2]}
5... g6 {[%clk 0:02:57.5]} 6. Nc3 {[%clk 0:03:00.2]} 6... Bxa6 {[%clk
0:02:57.1]} 7. e4 {[%clk 0:03:00]} 7... Bxf1 {[%clk 0:02:57.2]} 8. Kxf1 {[%clk
0:03:00.2]} 8... d6 {[%clk 0:02:58]} 9. Nf3 {[%clk 0:03:00.3]} 9... Bg7 {[%clk
0:02:57.1]} 10. g3 {[%clk 0:03:00.7]} 10... O-O {[%clk 0:02:57.2]} 11. Kg2
{[%clk 0:03:00.9]} 11... Nbd7 {[%clk 0:02:57.9]} 12. a4 {[%clk 0:03:01]} 12...
Qb6 {[%clk 0:02:55.8]} 13. Re1 {[%clk 0:02:58.7]} 13... Rfb8 {[%clk 0:02:55]}
14. Nd2 {[%clk 0:02:49.8]} 14... Qa6 {[%clk 0:02:49.5]} 15. Ra3 {[%clk
0:02:18.4]} 15... Rb4 {[%clk 0:02:22.4]} 16. Nb5 {[%clk 0:02:01.4]} 16... Ne8
{[%clk 0:01:59.6]} 17. b3 {[%clk 0:02:00.9]} 17... Ne5 {[%clk 0:01:42.2]} 18.
Qe2 {[%clk 0:01:24.5]} 18... c4 {[%clk 0:01:34.5]} 19. bxc4 {[%clk 0:00:54.2]}
19... Rc8 {[%clk 0:01:27.3]} 20. Nd4 {[%clk 0:00:33.7]} 20... Nxc4 {[%clk
0:01:23.4]} 21. Nc6 {[%clk 0:00:31.8]} 21... Rxc6 {[%clk 0:01:03.6]} 22. dxc6
{[%clk 0:00:31.5]} 22... Qxc6 {[%clk 0:01:03.4]} 23. Nxc4 {[%clk 0:00:30.7]}
23... Rxc4 {[%clk 0:01:01.9]} 24. Bg5 {[%clk 0:00:30.6]} 24... f6 {[%clk
0:00:51.1]} 25. Bf4 {[%clk 0:00:26.4]} 25... Rxa4 {[%clk 0:00:46.6]} 26. Qa2+
{[%clk 0:00:25.7]} 26... Rc4 {[%clk 0:00:45]} 27. Rc3 {[%clk 0:00:20.6]} 27...
d5 {[%clk 0:00:31.5]} 28. exd5 {[%clk 0:00:20.5]} 28... Qxd5+ {[%clk 0:00:31.7]}
29. Kg1 {[%clk 0:00:20.9]} 29... Rd4 {[%clk 0:00:19]} 30. Qxd5+ {[%clk
0:00:20.8]} 30... Rxd5 {[%clk 0:00:19.9]} 31. Rxe7 {[%clk 0:00:20.9]} 31... Kf8
{[%clk 0:00:17.7]} 32. Rce3 {[%clk 0:00:13.5]} 32... Nd6 {[%clk 0:00:14.6]} 33.
Bxd6 {[%clk 0:00:09.2]} 33... Rd1+ {[%clk 0:00:13.5]} 34. Kg2 {[%clk 0:00:07.9]}
34... Rxd6 {[%clk 0:00:13.5]} 35. Re8+ {[%clk 0:00:07.9]} 1-0

[Event "*** SCC Grand Prix: Titled Tuesday Blitz"]
[Site "Chess.com"]
[Date "2020.08.11"]
[Round "2"]
[White "Matols"]
[Black "olksuna"]
[Result "0-1"]
[WhiteElo "2211"]
[BlackElo "2637"]
[TimeControl "180+1"]
[EndTime "10:18:51 PDT"]
[Termination "olksuna won on time"]

1. d4 {[%clk 0:03:00.9]} 1... Nf6 {[%clk 0:02:59.2]} 2. c4 {[%clk 0:03:00.8]}
2... e6 {[%clk 0:02:59.2]} 3. g3 {[%clk 0:03:00.7]} 3... d5 {[%clk 0:02:54.8]}
4. Nf3 {[%clk 0:03:00.4]} 4... c5 {[%clk 0:02:52.4]} 5. Bg2 {[%clk 0:02:58]}
5... cxd4 {[%clk 0:02:49.2]} 6. Nxd4 {[%clk 0:02:48.3]} 6... e5 {[%clk
0:02:48.3]} 7. Nf3 {[%clk 0:02:30.2]} 7... d4 {[%clk 0:02:48.7]} 8. O-O {[%clk
0:02:26.2]} 8... Nc6 {[%clk 0:02:49.3]} 9. e3 {[%clk 0:02:11.6]} 9... Be7 {[%clk
0:02:47.7]} 10. exd4 {[%clk 0:02:10.8]} 10... exd4 {[%clk 0:02:48.6]} 11. Re1
{[%clk 0:02:03.4]} 11... O-O {[%clk 0:02:46.8]} 12. Bf4 {[%clk 0:01:55.6]} 12...
Qb6 {[%clk 0:02:39.8]} 13. Qb3 {[%clk 0:01:44.1]} 13... Be6 {[%clk 0:02:20.4]}
14. Nbd2 {[%clk 0:01:41.7]} 14... Nh5 {[%clk 0:02:19.1]} 15. Bg5 {[%clk
0:01:32.9]} 15... Bb4 {[%clk 0:01:54.9]} 16. Rad1 {[%clk 0:00:48.7]} 16... h6
{[%clk 0:01:52.9]} 17. Bh4 {[%clk 0:00:38.4]} 17... g5 {[%clk 0:01:48.9]} 18.
Bxg5 {[%clk 0:00:38.2]} 18... hxg5 {[%clk 0:01:49.3]} 19. Nxg5 {[%clk
0:00:38.7]} 19... Bxd2 {[%clk 0:01:45.4]} 20. Qd3 {[%clk 0:00:30.5]} 20... Nf6
{[%clk 0:01:34.7]} 21. Rxd2 {[%clk 0:00:22.8]} 21... Nd8 {[%clk 0:01:25.2]} 22.
Qxd4 {[%clk 0:00:15.2]} 22... Qxd4 {[%clk 0:01:22.9]} 23. Rxd4 {[%clk
0:00:15.2]} 23... Rc8 {[%clk 0:01:16.3]} 24. b3 {[%clk 0:00:15.1]} 24... Rc5
{[%clk 0:01:11.7]} 25. Red1 {[%clk 0:00:14.3]} 25... Rxg5 {[%clk 0:01:06]} 26.
Rxd8 {[%clk 0:00:13.2]} 26... b6 {[%clk 0:01:05.1]} 27. Rxf8+ {[%clk 0:00:10.2]}
27... Kxf8 {[%clk 0:01:06]} 28. Rd8+ {[%clk 0:00:10.5]} 28... Kg7 {[%clk
0:01:04.5]} 29. Ra8 {[%clk 0:00:11]} 29... Re5 {[%clk 0:01:02]} 30. Kf1 {[%clk
0:00:07]} 30... Bf5 {[%clk 0:01:00.5]} 31. f4 {[%clk 0:00:05.3]} 31... Bd3+
{[%clk 0:00:59.6]} 32. Kg1 {[%clk 0:00:05]} 32... Re2 {[%clk 0:01:00.5]} 33.
Rxa7 {[%clk 0:00:03.7]} 33... Ng4 {[%clk 0:00:58.5]} 34. Bd5 {[%clk 0:00:02.3]}
34... Ne3 {[%clk 0:00:52.9]} 35. Rxf7+ {[%clk 0:00:02.1]} 35... Kg6 {[%clk
0:00:53.3]} 36. Re7 {[%clk 0:00:01.7]} 36... Kf6 {[%clk 0:00:30.9]} 37. Re6+
{[%clk 0:00:01.6]} 37... Kf5 {[%clk 0:00:30.9]} 38. Rxb6 {[%clk 0:00:01.4]}
38... Ng4 {[%clk 0:00:22.3]} 0-1

[Event "*** SCC Grand Prix: Titled Tuesday Blitz"]
[Site "Chess.com"]
[Date "2020.08.11"]
[Round "2"]
[White "Angel_Hranitel_37"]
[Black "annamaja"]
[Result "1-0"]
[WhiteElo "2452"]
[BlackElo "2239"]
[TimeControl "180+1"]
[EndTime "10:18:51 PDT"]
[Termination "Angel_Hranitel_37 won by checkmate"]

1. d4 {[%clk 0:03:00.9]} 1... d5 {[%clk 0:02:58.9]} 2. c4 {[%clk 0:03:00.7]}
2... c6 {[%clk 0:02:58.9]} 3. cxd5 {[%clk 0:02:58.8]} 3... cxd5 {[%clk
0:02:58.5]} 4. Bg5 {[%clk 0:02:59.3]} 4... Nc6 {[%clk 0:02:57.4]} 5. Nc3 {[%clk
0:02:59.2]} 5... h6 {[%clk 0:02:51.5]} 6. Bh4 {[%clk 0:02:59]} 6... g5 {[%clk
0:02:51.2]} 7. Bg3 {[%clk 0:02:52.9]} 7... Nf6 {[%clk 0:02:49.7]} 8. e3 {[%clk
0:02:50.6]} 8... Bg7 {[%clk 0:02:46.3]} 9. Nf3 {[%clk 0:02:50.8]} 9... O-O
{[%clk 0:02:42.3]} 10. h4 {[%clk 0:02:47.4]} 10... g4 {[%clk 0:02:25]} 11. Ne5
{[%clk 0:02:47.3]} 11... Nxe5 {[%clk 0:02:16]} 12. Bxe5 {[%clk 0:02:40.2]} 12...
Bf5 {[%clk 0:02:07.2]} 13. Qb3 {[%clk 0:02:38]} 13... e6 {[%clk 0:01:30.3]} 14.
Qxb7 {[%clk 0:02:32.5]} 14... Ne4 {[%clk 0:01:05.5]} 15. Bc7 {[%clk 0:01:27.3]}
15... Qc8 {[%clk 0:00:56.8]} 16. Ba6 {[%clk 0:01:20.5]} 16... Qd7 {[%clk
0:00:45.9]} 17. O-O {[%clk 0:01:14.7]} 17... Nxc3 {[%clk 0:00:36.8]} 18. bxc3
{[%clk 0:01:14.3]} 18... Qe7 {[%clk 0:00:28.3]} 19. Bg3 {[%clk 0:01:08.4]} 19...
Qa3 {[%clk 0:00:20.2]} 20. Rfc1 {[%clk 0:01:00.8]} 20... Bf6 {[%clk 0:00:11.1]}
21. c4 {[%clk 0:00:59.8]} 21... dxc4 {[%clk 0:00:09.7]} 22. Bxc4 {[%clk
0:01:00.7]} 22... Rac8 {[%clk 0:00:08.4]} 23. Qb3 {[%clk 0:00:58.8]} 23... Qa5
{[%clk 0:00:06.6]} 24. Bd3 {[%clk 0:00:53.2]} 24... Bxd3 {[%clk 0:00:05.9]} 25.
Qxd3 {[%clk 0:00:54.1]} 25... Rxc1+ {[%clk 0:00:06]} 26. Rxc1 {[%clk 0:00:53.8]}
26... Qxa2 {[%clk 0:00:06.1]} 27. Qe4 {[%clk 0:00:53.1]} 27... h5 {[%clk
0:00:06]} 28. Be5 {[%clk 0:00:50.3]} 28... Bxe5 {[%clk 0:00:04.2]} 29. Qxe5
{[%clk 0:00:51.2]} 29... Re8 {[%clk 0:00:03.2]} 30. Qxh5 {[%clk 0:00:50.6]}
30... Qe2 {[%clk 0:00:03.1]} 31. Qg5+ {[%clk 0:00:48]} 31... Kf8 {[%clk
0:00:02.7]} 32. Qh6+ {[%clk 0:00:43.5]} 32... Kg8 {[%clk 0:00:02.8]} 33. Rc5
{[%clk 0:00:38.3]} 33... Qe1+ {[%clk 0:00:02.2]} 34. Kh2 {[%clk 0:00:38]} 34...
e5 {[%clk 0:00:02.6]} 35. Qc6 {[%clk 0:00:23.5]} 35... Rf8 {[%clk 0:00:02]} 36.
Rxe5 {[%clk 0:00:22.8]} 36... Qxf2 {[%clk 0:00:01.6]} 37. Rg5+ {[%clk
0:00:23.3]} 37... Kh7 {[%clk 0:00:02.1]} 38. Qe4+ {[%clk 0:00:22.6]} 38... f5
{[%clk 0:00:02.1]} 39. Qe7+ {[%clk 0:00:22.1]} 39... Kh6 {[%clk 0:00:01.1]} 40.
Qg7# {[%clk 0:00:22.5]} 1-0

[Event "*** SCC Grand Prix: Titled Tuesday Blitz"]
[Site "Chess.com"]
[Date "2020.08.11"]
[Round "2"]
[White "ahachess"]
[Black "Maksimus1998"]
[Result "0-1"]
[WhiteElo "2270"]
[BlackElo "2517"]
[TimeControl "180+1"]
[EndTime "10:18:55 PDT"]
[Termination "Maksimus1998 won by resignation"]

1. d4 {[%clk 0:03:00.8]} 1... d6 {[%clk 0:02:56.9]} 2. c4 {[%clk 0:03:00.1]}
2... g6 {[%clk 0:02:56.7]} 3. Nc3 {[%clk 0:02:59.6]} 3... Bg7 {[%clk 0:02:57]}
4. e4 {[%clk 0:02:59.7]} 4... Nf6 {[%clk 0:02:57.4]} 5. Be2 {[%clk 0:02:59.6]}
5... O-O {[%clk 0:02:57.3]} 6. Bg5 {[%clk 0:02:59.1]} 6... a6 {[%clk 0:02:54.3]}
7. Qd2 {[%clk 0:02:53.4]} 7... c6 {[%clk 0:02:53.3]} 8. h4 {[%clk 0:02:47.3]}
8... b5 {[%clk 0:02:52.3]} 9. a3 {[%clk 0:02:42.5]} 9... Nbd7 {[%clk 0:02:39.2]}
10. h5 {[%clk 0:02:35.6]} 10... bxc4 {[%clk 0:02:28.2]} 11. h6 {[%clk
0:02:34.8]} 11... Bh8 {[%clk 0:02:27.1]} 12. Bxc4 {[%clk 0:02:28]} 12... d5
{[%clk 0:02:27.2]} 13. exd5 {[%clk 0:02:25.1]} 13... Nb6 {[%clk 0:02:26.6]} 14.
Bd3 {[%clk 0:02:10.3]} 14... Nbxd5 {[%clk 0:02:18.1]} 15. Nf3 {[%clk 0:02:08.2]}
15... Rb8 {[%clk 0:02:17.8]} 16. Rc1 {[%clk 0:01:57.5]} 16... Be6 {[%clk
0:02:08.2]} 17. O-O {[%clk 0:01:51]} 17... a5 {[%clk 0:02:04.7]} 18. Rfe1 {[%clk
0:01:49.1]} 18... Nxc3 {[%clk 0:02:04]} 19. Rxc3 {[%clk 0:01:45.8]} 19... Bd5
{[%clk 0:02:03.6]} 20. Ne5 {[%clk 0:01:45.6]} 20... Rb6 {[%clk 0:01:33.8]} 21.
Qc2 {[%clk 0:01:40.4]} 21... Nd7 {[%clk 0:01:07.6]} 22. Bxg6 {[%clk 0:01:22.9]}
22... fxg6 {[%clk 0:01:00.2]} 23. Nxg6 {[%clk 0:01:23]} 23... Nf6 {[%clk
0:00:59]} 24. Rxe7 {[%clk 0:01:09.9]} 24... Bf7 {[%clk 0:00:51.7]} 25. Rxf7
{[%clk 0:00:57.5]} 25... Rxf7 {[%clk 0:00:48.2]} 26. Nxh8 {[%clk 0:00:57.6]}
26... Kxh8 {[%clk 0:00:47.3]} 27. Rxc6 {[%clk 0:00:57.6]} 27... Rxc6 {[%clk
0:00:45.9]} 28. Qxc6 {[%clk 0:00:57.6]} 28... Kg8 {[%clk 0:00:39.8]} 29. Qe6
{[%clk 0:00:29.5]} 29... Qd7 {[%clk 0:00:35.2]} 30. Qxd7 {[%clk 0:00:26.8]}
30... Nxd7 {[%clk 0:00:34.8]} 31. Be3 {[%clk 0:00:23.8]} 31... Nb6 {[%clk
0:00:33.7]} 32. b4 {[%clk 0:00:23.6]} 32... axb4 {[%clk 0:00:33.2]} 33. axb4
{[%clk 0:00:24.5]} 33... Nd5 {[%clk 0:00:34.1]} 34. b5 {[%clk 0:00:24.7]} 34...
Nxe3 {[%clk 0:00:33.5]} 35. fxe3 {[%clk 0:00:25.6]} 35... Rb7 {[%clk 0:00:34.3]}
36. Kf2 {[%clk 0:00:24.9]} 36... Rxb5 {[%clk 0:00:35.2]} 37. Kf3 {[%clk
0:00:25.3]} 37... Kf7 {[%clk 0:00:36.1]} 38. e4 {[%clk 0:00:24.5]} 38... Rh5
{[%clk 0:00:34.9]} 39. g4 {[%clk 0:00:24]} 39... Rxh6 {[%clk 0:00:35.8]} 40. Kf4
{[%clk 0:00:24.4]} 40... Ra6 {[%clk 0:00:36.5]} 41. e5 {[%clk 0:00:24.1]} 41...
Ke6 {[%clk 0:00:34.1]} 42. Ke4 {[%clk 0:00:24.4]} 42... Ra4 {[%clk 0:00:34]} 43.
g5 {[%clk 0:00:25.1]} 43... Rb4 {[%clk 0:00:34.3]} 44. Ke3 {[%clk 0:00:20.8]}
44... Kd5 {[%clk 0:00:34]} 45. Kf4 {[%clk 0:00:21.1]} 45... Rxd4+ {[%clk
0:00:33.9]} 46. Kf5 {[%clk 0:00:21.9]} 46... Re4 {[%clk 0:00:34.8]} 0-1